Cogmind - Beta 14 @@@ ROGUE MODE // 2024.11.19 @ 23:36:44 Player: Mathewnd Result: Destroyed by G-47 Trooper with Particle Gun Performance ------------- Evolutions (3) 1500 Regions Visited (8) 1600 Robots Destroyed (27) 135 Value Destroyed (733) 733 Prototype IDs (27) 540 Alien Tech Used (0) 0 Bonus (202) 202 TOTAL SCORE: 4710 Bonus ------- Follower Combat Kills 34 Aligned with FarCom 300 Friendly Fire -132 Cogmind --------- Core Integrity 0/700 Matter 0/300 Energy 100/100 System Corruption 58% Temperature Cool (9) Movement Core (100) Ox1 Location -7/Factory Parts ------- > --- POWER (1) -------- (None) > --- PROPULSION (4) --- (None) > --- UTILITY (3) ------ Small Storage Unit Advanced Visual Processing Unit Targeting Computer > --- WEAPON (5) ------- (None) > --- INVENTORY (8) ---- Light Nuclear Core Heavy Treads Arc Projector Advanced Plasma Cannon Heavy Flak Cannon Peak State ------------ > --- POWER ------------ Antimatter Reactor > --- PROPULSION ------- Aluminum Leg Carbon-fiber Leg Carbon-fiber Leg Carbon-fiber Leg > --- UTILITY ---------- Small Storage Unit Advanced Visual Processing Unit Targeting Computer > --- WEAPON ----------- XL Autogun Array > --- INVENTORY -------- Light Nuclear Core Aluminum Leg Aluminum Leg Aluminum Leg Advanced Plasma Cannon Heavy Flak Cannon Rocket Launcher Mining Laser [Rating: 60] Favorites ----------- Power Light Ion Engine Engine Light Ion Engine Power Core Light Nuclear Core Reactor Antimatter Reactor Propulsion Aluminum Leg Leg Aluminum Leg Utility Small Storage Unit Storage Small Storage Unit Processor Visual Processing Unit Weapon Assault Rifle Ballistic Gun Assault Rifle Ballistic Cannon Improved Light Cannon Launcher Rocket Launcher Special Weapon Mining Laser Build | -11 -10 -10 -10 -9 -8 -7 -7 -7 ------- Run | Yrd Mat Min Exi Min Mat Fac Was Fac Slots Evolved 6 | . . . . . 4 2 . . Power . | . . . . . . . . . Propulsion 2 | . . . . . 2 . . . Utility 1 | . . . . . . 1 . . Weapon 3 | . . . . . 2 1 . . Parts Attached 29 | 6 2 . 1 1 10 1 6 2 Power 6 | 1 1 . . . 2 . 1 1 Engine 2 | 1 1 . . . . . . . Core 2 | . . . . . 2 . . . Reactor 2 | . . . . . . . 1 1 Propulsion 12 | 2 . . 1 . 6 . 3 . Treads . | . . . . . . . . . Leg 12 | 2 . . 1 . 6 . 3 . Wheel . | . . . . . . . . . Hover . | . . . . . . . . . Flight . | . . . . . . . . . Utility 4 | 1 1 . . . 1 1 . . Device . | . . . . . . . . . Storage 1 | 1 . . . . . . . . Processor 3 | . 1 . . . 1 1 . . Hackware . | . . . . . . . . . Protection . | . . . . . . . . . Artifact . | . . . . . . . . . Weapon 7 | 2 . . . 1 1 . 2 1 Energy Gun . | . . . . . . . . . Energy Cannon . | . . . . . . . . . Ballistic Gun 4 | 2 . . . . 1 . . 1 Ballistic Cannon 1 | . . . . 1 . . . . Launcher 1 | . . . . . . . 1 . Special Weapon 1 | . . . . . . . 1 . Impact Weapon . | . . . . . . . . . Slashing Weapon . | . . . . . . . . . Piercing Weapon . | . . . . . . . . . Special Melee Weapon . | . . . . . . . . . Unidentified Prototypes . | . . . . . . . . . Parts Lost 8 | . 1 . . . . . 4 3 Power 3 | . 1 . . . . . 1 1 Propulsion 4 | . . . . . . . 2 2 Utility . | . . . . . . . . . Weapon 1 | . . . . . . . 1 . Highest Loss Streak 3 | . 1 . . . . . 2 3 To Critical Strikes . | . . . . . . . . . Average Slot Usage (%) 74 | . 93 100 100 100 71 69 50 45 Engine 5 | . 11 14 14 14 1 . . . Core 2 | . . . . . 7 7 . . Reactor 1 | . . . . . . . 2 5 Leg 26 | . 28 28 28 28 35 30 19 12 Storage 10 | . 14 14 14 14 9 7 7 7 Processor 12 | . 10 14 14 14 9 15 15 15 Ballistic Gun 11 | . 28 28 28 15 9 7 1 2 Ballistic Cannon 1 | . . . . 12 . . . . Peak Build Rating 60 | 6 8 8 12 13 53 54 60 20 Average Rating 24 | 3 7 8 9 12 48 54 24 16 On Entrance 18 | . 6 8 8 12 13 53 54 10 Naked Turns . | . . . . . . . . . Heaviest Build 36 | 11 11 11 11 14 25 25 36 25 Greatest Support 55 | 20 20 20 20 20 55 55 55 20 Greatest Overweight (x) 2 | . . . . . . . 1 2 Average Overweight (x) . | . . . . . . . . . Largest Inventory Capacity 8 | 8 8 8 8 8 8 8 8 8 Average Capacity 7 | 7 8 8 8 8 8 8 8 8 Most Carried 8 | 8 8 7 8 8 8 6 8 6 Average Carried 6 | 4 7 7 7 7 4 6 7 5 Final Capacity 8 | 8 8 8 8 8 8 8 8 8 Final Carried 8 | 6 7 7 8 8 7 6 6 6 Class Distribution -------------------- 51% | Mutant 31% | Scavenger-Skirmisher 14% | Scavenger-Mutant Dominant Class ---------------- Mutant | -10/Materials Mutant | -10/Mines Mutant | -10/Exiles Mutant | -9/Mines Scavenger-Skirmisher | -8/Materials Scavenger-Skirmisher | -7/Factory Mutant | -7/Waste Scavenger-Mutant | -7/Factory Resources | -11 -10 -10 -10 -9 -8 -7 -7 -7 ----------- Run | Yrd Mat Min Exi Min Mat Fac Was Fac Matter Collected 1375 | 247 70 10 . 41 419 . 588 . Remotely . | . . . . . . . . . Salvage Created 1844 | . 122 . . 68 516 . 1138 . Parts 71 | . 14 . . 12 33 . 12 . Haulers Intercepted . | . . . . . . . . . Recyclers Shooed . | . . . . . . . . . Parts Field Recycled . | . . . . . . . . . Retrieved Matter . | . . . . . . . . . Parts Self-Destructed . | . . . . . . . . . Prevented . | . . . . . . . . . Kills | -11 -10 -10 -10 -9 -8 -7 -7 -7 ------- Run | Yrd Mat Min Exi Min Mat Fac Was Fac Combat Hostiles Destroyed 23 | . 2 . . 4 12 . 5 . Guns 16 | . 2 . . 1 12 . 1 . Cannons 3 | . . . . 3 . . . . AOE 4 | . . . . . . . 4 . Classes Destroyed 7 | . 3 . . 1 2 . 1 . Worker 1 | . 1 . . . . . . . Watcher 2 | . 1 . . . 1 . . . Swarmer 9 | . . . . 3 6 . . . Grunt 6 | . 2 . . 1 3 . . . Sentry 2 | . . . . . 2 . . . Hunter 1 | . . . . . 1 . . . Compactor 5 | . . . . . . . 5 . Thug 1 | . . . . . 1 . . . Best Kill Streak 6 | . 3 . . 3 6 . 2 . Combat Bots Only 6 | . 2 . . 3 6 . 2 . Max Kills in Single Turn 2 | . 1 . . 1 2 . 1 . Gunslinging . | . . . . . . . . . Exploded 1 | . . . . . . . 1 . Melee . | . . . . . . . . . Uniques/NPCs Destroyed . | . . . . . . . . . Combat | -11 -10 -10 -10 -9 -8 -7 -7 -7 -------- Run | Yrd Mat Min Exi Min Mat Fac Was Fac Hostile Shots Fired 139 | . 23 . . 6 21 . 2 87 Missed 45 | . 6 . . 3 6 . . 30 Damage Taken 1807 | . 240 . . 22 201 . 412 932 Core 778 | . 51 . . . 25 . 132 570 Absorbed by Shields . | . . . . . . . . . Regen/Repaired (Parts) 23 | . . . . . 23 . . . Core Remaining (%) 91 | 100 . . . 79 95 . . . Volleys Fired 100 | . 13 . . 4 22 . 61 . Largest 2 | . 2 . . 2 1 . 1 . Hottest 60 | . 40 . . 59 60 . 60 . Shots Fired 114 | . 26 . . 8 22 . 58 . Gun 73 | . 26 . . 4 22 . 21 . Cannon 4 | . . . . 4 . . . . Launcher 37 | . . . . . . . 37 . Special . | . . . . . . . . . Kinetic 77 | . 26 . . 8 22 . 21 . Thermal . | . . . . . . . . . Explosive 37 | . . . . . . . 37 . Electromagnetic . | . . . . . . . . . Robot Hit Streak 12 | . 3 . . 2 6 . 12 . Robot Miss Streak 4 | . 3 . . 1 4 . 4 . Penetration Max . | . . . . . . . . . Secondary Targets . | . . . . . . . . . Shots Hit Robots 85 | . 13 . . 4 18 . 50 . Core Hits 47 | . 7 . . 4 18 . 18 . Critical Kills 1 | . 1 . . . . . . . Critical Parts Destroyed . | . . . . . . . . . Critical Strikes 1 | . 1 . . . . . . . Destroy 1 | . 1 . . . . . . . Melee Attacks . | . . . . . . . . . Impact . | . . . . . . . . . Slashing . | . . . . . . . . . Piercing . | . . . . . . . . . Sneak Attacks . | . . . . . . . . . Combat Hostiles . | . . . . . . . . . Follow-up Attacks . | . . . . . . . . . Damage Inflicted 5626 | . 159 . . 71 709 . 4687 . Guns 2288 | . 159 . . 13 709 . 1407 . Cannons 58 | . . . . 58 . . . . Explosions 3280 | . . . . . . . 3280 . Melee . | . . . . . . . . . Ramming . | . . . . . . . . . Kinetic 2346 | . 159 . . 71 709 . 1407 . Thermal . | . . . . . . . . . Explosive 3280 | . . . . . . . 3280 . Electromagnetic . | . . . . . . . . . Impact . | . . . . . . . . . Slashing . | . . . . . . . . . Piercing . | . . . . . . . . . Highest Corruption 58 | . . . . . 3 . 52 58 Average Corruption 23 | . . . . . 2 . 27 52 Corruption Purged . | . . . . . . . . . Corruption Blocked . | . . . . . . . . . Effects 70 | . . . . . 12 . 36 22 Message Errors 16 | . . . . . 3 . 7 6 Matter Fused 12 | . . . . . 2 . 5 5 Heat Flow Errors 10 | . . . . . 2 . 5 3 Energy Discharges 6 | . . . . . 1 . 3 2 Parts Rejected 4 | . . . . . 1 . 2 1 Data Loss (minor) 6 | . . . . . 2 . 4 . Data Loss (major) 4 | . . . . . 1 . 1 2 Misdirections 9 | . . . . . . . 6 3 Weapon Failures 3 | . . . . . . . 3 . Overload Shots . | . . . . . . . . . Overflow Damage 32 | . . . . . . . 32 . Projectiles . | . . . . . . . . . Explosions 32 | . . . . . . . 32 . Melee . | . . . . . . . . . Knockbacks . | . . . . . . . . . Impact . | . . . . . . . . . Kinetic . | . . . . . . . . . Secondary . | . . . . . . . . . Self-Inflicted Damage 291 | . . . . . . . 291 . Shots 12 | . . . . . . . 12 . Rammed . | . . . . . . . . . Targets Rammed . | . . . . . . . . . Kicked . | . . . . . . . . . Crushed . | . . . . . . . . . Highest Temperature 428 | . 36 . . . 257 . 428 232 Average Temperature 104 | . 16 . . . 69 . 152 97 Received Heat Transfer 390 | . 156 . . . 63 . 9 162 Effects 1 | . . . . . . . 1 . Short Circuit 1 | . . . . . . . 1 . Siege Activations . | . . . . . . . . . Robots Corrupted . | . . . . . . . . . Combat Hostiles . | . . . . . . . . . Parts Fried . | . . . . . . . . . Impact Corruptions . | . . . . . . . . . Robots Melted . | . . . . . . . . . Combat Hostiles . | . . . . . . . . . Parts Melted . | . . . . . . . . . Heat Transferred . | . . . . . . . . . Parts Sabotaged . | . . . . . . . . . Parts Stolen . | . . . . . . . . . Parts Stripped . | . . . . . . . . . Power Chain Reactions . | . . . . . . . . . Alert | -11 -10 -10 -10 -9 -8 -7 -7 -7 ------- Run | Yrd Mat Min Exi Min Mat Fac Was Fac Peak Influence 259 | . 132 51 . 138 259 44 61 15 Initial 51 | . . 51 . . . 44 15 . Average 67 | . 47 51 . 49 153 44 22 2 Maximum Alert Level 1 | . . . . . 1 . . . Low Security (%) 88 | 100 100 100 . 100 64 100 100 100 Level 1 11 | . . . . . 35 . . . Level 2 . | . . . . . . . . . Level 3 . | . . . . . . . . . Level 4 . | . . . . . . . . . Level 5 . | . . . . . . . . . High Security . | . . . . . . . . . Max Security . | . . . . . . . . . Squads Dispatched 3 | . 1 . . . . . . 2 Investigation . | . . . . . . . . . Extermination 1 | . . . . . . . . 1 Reinforcement 2 | . 1 . . . . . . 1 Assault . | . . . . . . . . . Garrison . | . . . . . . . . . Intercept . | . . . . . . . . . Searches Triggered . | . . . . . . . . . Construction Impeded . | . . . . . . . . . Haulers Reinforced . | . . . . . . . . . Active Scanning Responses . | . . . . . . . . . Cargo Convoy Interrupts . | . . . . . . . . . Stealth | -11 -10 -10 -10 -9 -8 -7 -7 -7 --------- Run | Yrd Mat Min Exi Min Mat Fac Was Fac Distress Signals 4 | . 1 . . . 3 . . . Communications Jammed . | . . . . . . . . . Distress Signals . | . . . . . . . . . Times Spotted 45 | . 7 3 . 4 19 . 7 5 Peak Tracking Total 5 | . 3 3 . 3 4 . 2 5 Tactical Retreats 2 | . 1 . . . . . 1 . Traps | -11 -10 -10 -10 -9 -8 -7 -7 -7 ------- Run | Yrd Mat Min Exi Min Mat Fac Was Fac Traps Triggered 4 | . . . . . 2 1 . 1 Indirectly . | . . . . . . . . . Trap Hack Attempts . | . . . . . . . . . Triggered . | . . . . . . . . . Disarmed . | . . . . . . . . . Reprogrammed . | . . . . . . . . . Reused . | . . . . . . . . . Traps Extracted . | . . . . . . . . . Installed . | . . . . . . . . . Triggered . | . . . . . . . . . Machines | -11 -10 -10 -10 -9 -8 -7 -7 -7 ---------- Run | Yrd Mat Min Exi Min Mat Fac Was Fac Machines Disabled . | . . . . . . . . . Max in Single Turn . | . . . . . . . . . Machines Repaired . | . . . . . . . . . Machines Dismantled . | . . . . . . . . . Machines Sabotaged . | . . . . . . . . . Overloaded Fab Kills . | . . . . . . . . . Hacking | -11 -10 -10 -10 -9 -8 -7 -7 -7 --------- Run | Yrd Mat Min Exi Min Mat Fac Was Fac Machines Accessed 7 | . 1 . 1 . 3 1 . 1 Terminals 4 | . 1 . . . 2 1 . . Fabricators . | . . . . . . . . . Repair Stations 2 | . . . . . 1 . . 1 Recycling Units . | . . . . . . . . . Scanalyzers . | . . . . . . . . . Garrison Access . | . . . . . . . . . Total Hacks 20 | . 2 . 1 . 11 2 . 4 Successful 10 | . 2 . 1 . 6 . . 1 Failed 10 | . . . . . 5 2 . 3 Catastrophic 1 | . . . . . . . . 1 Database Lockouts . | . . . . . . . . . Manual 1 | . . . 1 . . . . . Terminals 13 | . 2 . . . 9 2 . . Fabricators . | . . . . . . . . . Repair Stations 6 | . . . . . 2 . . 4 Recycling Units . | . . . . . . . . . Scanalyzers . | . . . . . . . . . Garrison Access . | . . . . . . . . . Terminal Hacks 7 | . 2 . 1 . 4 . . . Prototype ID Bank 2 | . 1 . . . 1 . . . Branch Access Points 1 | . . . . . 1 . . . Terminal Index 1 | . 1 . . . . . . . Alert Level 1 | . . . . . 1 . . . Hauler Manifests 1 | . . . . . 1 . . . Derelict Proto ID Bank 1 | . . . 1 . . . . . Fabricator Hacks . | . . . . . . . . . Repair Station Hacks 3 | . . . . . 2 . . 1 Scan Component 2 | . . . . . 1 . . 1 Repair 1 | . . . . . 1 . . . Recycling Unit Hacks . | . . . . . . . . . Scanalyzer . | . . . . . . . . . Garrison Access Hacks . | . . . . . . . . . Unauthorized Hacks . | . . . . . . . . . Terminals . | . . . . . . . . . Fabricators . | . . . . . . . . . Repair Stations . | . . . . . . . . . Recycling Units . | . . . . . . . . . Scanalyzers . | . . . . . . . . . Garrison Access . | . . . . . . . . . Data Cores Recovered . | . . . . . . . . . Used . | . . . . . . . . . Hacking Detections 6 | . 1 . . . 3 1 . 1 Full Trace Events . | . . . . . . . . . Feedback Events . | . . . . . . . . . Feedback Blocked . | . . . . . . . . . Robot Schematics Acquired . | . . . . . . . . . Robots Built . | . . . . . . . . . Authchips . | . . . . . . . . . Time . | . . . . . . . . . Total Robot Build Rating . | . . . . . . . . . Part Schematics Acquired . | . . . . . . . . . Parts Built . | . . . . . . . . . Authchips . | . . . . . . . . . Time . | . . . . . . . . . Total Part Build Rating . | . . . . . . . . . Parts Repaired 1 | . . . . . 1 . . . Time 38 | . . . . . 38 . . . Parts Recycled . | . . . . . . . . . Recycled Matter . | . . . . . . . . . Retrieved Matter . | . . . . . . . . . Retrieved Components . | . . . . . . . . . Parts Scanalyzed . | . . . . . . . . . Part Schematics Acquired . | . . . . . . . . . Parts Damaged . | . . . . . . . . . Bothacking | -11 -10 -10 -10 -9 -8 -7 -7 -7 ------------ Run | Yrd Mat Min Exi Min Mat Fac Was Fac Used RIF Installer . | . . . . . . . . . Robots Hacked . | . . . . . . . . . Non-combat . | . . . . . . . . . Combat . | . . . . . . . . . Robot Hacks Applied . | . . . . . . . . . Relay Couplers Released . | . . . . . . . . . Fabnet Peak Effective % . | . . . . . . . . . Robots Rewired . | . . . . . . . . . Allies Hacked . | . . . . . . . . . Hacks Repelled . | . . . . . . . . . Allies | -11 -10 -10 -10 -9 -8 -7 -7 -7 -------- Run | Yrd Mat Min Exi Min Mat Fac Was Fac Total Allies 4 | . . . . 3 . . 1 . Largest Group 3 | . . . . 3 3 . 1 . Highest-Rated Group 72 | . . . . 72 72 . 31 . Highest-Rated Ally 31 | . . . . 31 31 . 31 . Total Orders . | . . . . . . . . . Ally Attacks 26 | . . . . 16 4 . 6 . Total Damage 290 | . . . . 144 41 . 105 . Kills 2 | . . . . 1 1 . . . Allies Corrupted . | . . . . . . . . . Allies Melted . | . . . . . . . . . Intel | -11 -10 -10 -10 -9 -8 -7 -7 -7 ------- Run | Yrd Mat Min Exi Min Mat Fac Was Fac Robot Analysis Total . | . . . . . . . . . Derelict Logs Recovered 1 | . . . . 1 . . . . Drone Launches . | . . . . . . . . . Drone Recoveries . | . . . . . . . . . Exploration | -11 -10 -10 -10 -9 -8 -7 -7 -7 ------------- Run | Yrd Mat Min Exi Min Mat Fac Was Fac Turns Passed 3040 | 71 266 85 290 474 855 48 540 411 Spaces Moved 2071 | 48 184 66 238 367 574 37 356 201 Core 77 | 6 . . . . . . 40 31 Treads . | . . . . . . . . . Legs 1994 | 42 184 66 238 367 574 37 316 170 Wheels . | . . . . . . . . . Hover . | . . . . . . . . . Flight . | . . . . . . . . . Fastest Speed 50 | 50 120 120 120 120 120 120 100 100 Average Speed 124 | 111 120 120 120 120 120 120 117 170 Slowest Speed 260 | 120 120 120 120 120 120 120 120 260 Overloaded Moves . | . . . . . . . . . Propulsion Burnouts . | . . . . . . . . . Robots Hopped . | . . . . . . . . . Cave-ins Triggered . | . . . . . . . . . Exploration Rate (%) 34 | 3 34 22 66 59 32 2 86 4 Regions Visited 8 Branch Regions 3 Pre-discovered Areas . | . . . . . . . . . Known Exits Taken . | . . . . . . . . . Unknown Exits Taken 6 | 1 1 1 1 1 1 . . . Scrap Searched 1 | . . . . 1 . . . . Spaces Dug 8 | . . . . . 8 . . . Terrain Destroyed 211 | . . . . . 33 . 178 . Melee . | . . . . . . . . . Projectile 34 | . . . . . 33 . 1 . AOE 177 | . . . . . . . 177 . Terrain Rammed . | . . . . . . . . . Walls Destroyed . | . . . . . . . . . Machines Disabled . | . . . . . . . . . Actions | -11 -10 -10 -10 -9 -8 -7 -7 -7 --------- Run | Yrd Mat Min Exi Min Mat Fac Was Fac Total 2469 | 65 207 72 244 393 738 41 440 269 Wait 222 | . . 7 . 16 123 3 9 64 Move 2064 | 47 183 65 237 366 573 37 355 201 Hop . | . . . . . . . . . Pick Up 39 | 12 6 . 2 3 8 . 6 2 Fast Attach . | . . . . . . . . . Attach 22 | 6 2 . 1 . 5 1 5 2 Detach . | . . . . . . . . . Swap 7 | . . . . 1 5 . 1 . Drop 15 | . 3 . 4 3 2 . 3 . Fire 100 | . 13 . . 4 22 . 61 . Melee . | . . . . . . . . . Ram . | . . . . . . . . . Kick . | . . . . . . . . . Crush . | . . . . . . . . . Escape Stasis . | . . . . . . . . . Rewire . | . . . . . . . . . Trap . | . . . . . . . . . Miscellaneous . | . . . . . . . . . Route ------- -11/Scrapyard -10/Materials -10/Mines (discovered 2 exits: [*Mat] / *Exi) -10/Exiles (discovered 2 exits: [*Min x2]) -9/Mines -8/Materials -7/Factory -7/Waste -7/Factory History --------- Turn | Location | Event 4 | -11/Scrapyard | Discovered new exit (range 15) 72 | -11/Scrapyard | Entered Materials 150 | -10/Materials | Met 8R-AWN 152 | -10/Materials | Discovered new exit (range 18) 338 | -10/Materials | Entered Mines 339 | -10/Mines | Build established: Mutant 339 | -10/Mines | Followed 8R-AWN into the Mines 355 | -10/Mines | Met a Derelict bent on vengeance 383 | -10/Mines | Discovered new exit (range 5) 419 | -10/Mines | Discovered new exit (range 5) 423 | -10/Mines | Entered Exiles 441 | -10/Exiles | Discovered new exit (range 16) 455 | -10/Exiles | Welcomed by 8R-AWN 473 | -10/Exiles | Met EX-HEX 513 | -10/Exiles | Met EX-BIN 528 | -10/Exiles | Aligned with FarCom system 529 | -10/Exiles | Given EX-Vault access code 559 | -10/Exiles | Opened EX-Vault 569 | -10/Exiles | Found XL Autogun Array 596 | -10/Exiles | Warned to stay clear of 0b10 Research branches 631 | -10/Exiles | Met EX-DEC 696 | -10/Exiles | Discovered new exit (range 14) 713 | -10/Exiles | Left Exiles lab with XL Autogun Array 713 | -10/Exiles | Entered Mines 885 | -9/Mines | Learned Materials stockpile data 979 | -9/Mines | Received a Mining Laser from a helpful Derelict 1172 | -9/Mines | Discovered new exit (range 6) 1177 | -9/Mines | Received a Rocket Launcher from a helpful Derelict 1187 | -9/Mines | Entered Materials 1187 | -8/Materials | Accompanied by 3 allies 1187 | -8/Materials | Evolved 4 slots: Propulsion x2, Weapon x2 1192 | -8/Materials | Led the pair of lost Derelicts to an unsafe place 1484 | -8/Materials | Build established: Scavenger-Skirmisher 1865 | -8/Materials | Repaired Carbon-fiber Leg 2011 | -8/Materials | Discovered new exit (range 19) 2042 | -8/Materials | Entered Factory 2042 | -7/Factory | Evolved 2 slots: Utility x1, Weapon x1 2090 | -7/Factory | Sucked down chute 2090 | -7/Factory | Entered Waste 2091 | -7/Waste | Met a frightened Derelict 2105 | -7/Waste | EMP discharged 2105 | -7/Waste | System corruption reached 10% 2111 | -7/Waste | Spotted C-40 Crusher 2124 | -7/Waste | Destroyed C-40 Crusher 2173 | -7/Waste | Spotted C-40 Crusher 2197 | -7/Waste | Spotted C-40 Crusher 2205 | -7/Waste | EMP discharged 2223 | -7/Waste | Destroyed C-40 Crusher 2230 | -7/Waste | Destroyed C-40 Crusher 2244 | -7/Waste | Spotted C-40 Crusher 2248 | -7/Waste | Spotted C-40 Crusher 2264 | -7/Waste | Destroyed C-40 Crusher 2296 | -7/Waste | Crushed by Compactor (1 part destroyed, 1 dropped) 2299 | -7/Waste | Destroyed C-40 Crusher 2305 | -7/Waste | EMP discharged 2332 | -7/Waste | Spotted C-40 Crusher 2401 | -7/Waste | Crushed by Compactor (1 part destroyed, 1 dropped) 2405 | -7/Waste | EMP discharged 2405 | -7/Waste | System corruption reached 30% 2505 | -7/Waste | EMP discharged 2589 | -7/Waste | Build established: Mutant 2605 | -7/Waste | EMP discharged 2606 | -7/Waste | Discovered new exit (range 12) 2630 | -7/Waste | Entered Factory 2931 | -7/Factory | Build established: Scavenger-Mutant 3009 | -7/Factory | Core integrity fell below 50% 3024 | -7/Factory | Lost 3 parts (1p2n) 3031 | -7/Factory | Core integrity fell below 20% 3041 | -7/Factory | Destroyed by G-47 Trooper with Particle Gun Last Messages --------------- reinforcements to Terminal F012. System corrupted: Heat flow error (+194). P-60 Hacker resets U-05 Engineer, system corruption cleaned. BGGU8KU E9<%W2S=T1TR= 2:Q Aluminum Leg destroyed. Antimatter Reactor destroyed. System corrupted: Gauss Rifle rejected. Aluminum Leg destroyed. Triggered Heavy Explosive Trap. An explosion rips through the floor. U-05 Engineer lays Concrete. System corrupted: Substantial component data lost. U-05 Engineer lays Concrete. System corrupted: Matter fused (-9). Acquired Arc Projector. System corrupted: Matter fused (-6). Critical hit (Burn: +37). Emergency Access malfunctions. Map ----- +----------------------------------------------------+ | ???????" !#???????????????????????? | | ?????????# #???????????????????????? | | ?????????#^ ###+######????????????????????? | | ?????????# #?# +????????????????????? | | ######+### ### #????????????????????? | | #????????????????????? | | #????????????????????? | | #??????????####??????? | | #????????? ???????? | | #???????? ????????? | | #####+########### #??????? ?????????? | | ????????????????# #####?? """"?????????? | | ????????????????# #? """"?????????? | | ????????????????# # """ #???? | | ????????????????# + ????? | | ????????????????# # """""????????? | | ????????????????# #? """??????????? | | ????????????????#########+##+#????"???????????? | | ???????????????????# g #????????????????? | | ?????????????????### """ """ #????????????????? | | ?????????????????? + """ """ #????????????????? | | ???????????????????# """g"""g#????????????????? | | ???????????????????#pp #????????????????? | | ???????????????????# #????????????????? | | ???????????????????# ! ## #?????????????? | | ???????????????????#* ! @ / #?????????????? | | ???????????????????##############?????????????? | | ??????????????????????????????????????????????? | | ??????????????????????????????????????????????? | | ??????????????????????????????????????????????? | | ??????????????????????????????????????????????? | | ??????????????????????????????????????????????? | | ??????????????????????????????????????????????? | | ??????????????????????????????????????????????? | | ??????????????????????????????????????????????? | | ??????????????????????????????????????????????? | | ??????????????????????????????????????????????? | | ??????????????????????????????????????????????? | | ??????????????????????????????????????????????? | | ??????????????????????????????????????????????? | | ??????????????????????????????????????????????? | | ??????????????????????????????????????????????? | | ??????????????????????????????????????????????? | | ??????????????????????????????????????????????? | | ??????????????????????????????????????????????? | | ??????????????????????????????????????????????? | | ??????????????????????????????????????????????? | | ??????????????????????????????????????????????? | | ??????????????????????????????????????????????? | | ??????????????????????????????????????????????? | +----------------------------------------------------+ Best States ------------- Heat Dissipation 34 Energy Generation 21 Energy Capacity 325 Matter Stores 300 Matter Capacity 300 Sight Range 20 Terrain Scan Density 10 Evasion (%) 55 Targeting Accuracy 5 Item Schematics ----------------- None Robot Schematics ------------------ None Fabricated ------------ Nothing Alien Tech Used ----------------- None Achievements -------------- Backstab Oops Z1$+NX3F=JRE3_ZNQR Challenges ------------ None Game ------ Seed BeamSystemAxe Manual? 0 Play Time 00:48:38 Cumulative 8.8 hours Start 2024.11.19 @ 22:41:19 End 2024.11.19 @ 23:36:44 Sessions 1 Manual Loads 0 Difficulty Rogue Special Mode None Game No. 8 Rogue 8 Adventurer 0 Explorer 0 Win Type - Total 0 Types 0/0/0/0/0/0/0/0/0 Lore% 9 Gallery% 10 Achievement% 12 Wizard Run 0 Options --------- Layout 1 ASCII 0 Keyboard 0 Movement Mouse Keybinds 0 Fullscreen 1 Font 24/Smallcaps Map View 50x35 Zoom Use 0% Tactical HUD 0 Map Filters NONE Filters NONE Steam 1 RUN: c1362b40-e220-4664-b5b7-9d04bc1356e7